[Event "18th Rochefort Open 2019"]
[Site "Rochefort"]
[Date "2019.02.21"]
[Round "8.3"]
[White "Gascon Del Nogal, Jose Rafael"]
[Black "Rios, Cristhian Camilo"]
[Result "1/2-1/2"]
[ECO "B33"]
[WhiteElo "2457"]
[BlackElo "2482"]
[Annotator "ChessBase"]
[PlyCount "32"]
[EventDate "2019.02.16"]
[EventType "swiss"]
[EventCountry "FRA"]
[SourceTitle "playchess.com"]
[Source "ChessBase"]
[SourceQuality "1"]
[TimeControl "40/5400+30:1800+30"]

1. e4 {[%emt 0:02:26]} c5 {[%emt 0:00:00]} 2. Ne2 {[%emt 0:00:05]} Nc6 {[%emt 0:00:00]} 3. d4 {[%emt 0:00:13]} cxd4 {[%emt 0:00:09]} 4. Nxd4 {[%emt 0:00:07]} Nf6 {[%emt 0:00:21]} 5. Nc3 {[%emt 0:00:05]} e5 {[%emt 0:00:22]} 6. Ndb5 {[%emt 0:00:06]} d6 {[%emt 0:00:09]} 7. Bg5 {[%emt 0:00:07]} a6 {[%emt 0:00:18]} 8. Na3 {[%emt 0:00:08]} b5 {[%emt 0:00:20]} 9. Nd5 {[%emt 0:01:22]} Qa5+ {[%emt 0:04:15]} 10. Bd2 {[%emt 0:00:24]} Qd8 {[%emt 0:00:08]} 11. Bg5 {[%emt 0:05:19]} Qa5+ {[%emt 0:03:57]} 12. Bd2 {[%emt 0:00:07]} Qd8 {[%emt 0:00:14]} 13. Bd3 {[%emt 1:26:01]} Nxd5 14. exd5 Ne7 15. c4 Bb7 {[%emt 1:27:17]} 16. O-O {[%emt 0:01:30]} Nc6 {[%emt 0:00:30]} 1/2-1/2

[Event "18th Rochefort Open 2019"]
[Site "Rochefort"]
[Date "2019.02.22"]
[Round "9.4"]
[White "Shirazi, Kamran"]
[Black "Gascon Del Nogal, Jose Rafael"]
[Result "0-1"]
[ECO "C79"]
[WhiteElo "2309"]
[BlackElo "2457"]
[Annotator "ChessBase"]
[PlyCount "229"]
[EventDate "2019.02.16"]
[EventType "swiss"]
[EventCountry "FRA"]
[SourceTitle "playchess.com"]
[Source "ChessBase"]
[SourceQuality "1"]
[TimeControl "40/5400+30:1800+30"]

1. e4 {[%emt 0:00:10]} e5 {[%emt 0:02:10]} 2. Nf3 {[%emt 0:03:56]} Nc6 {[%emt 0:08:29]} 3. Bb5 {[%emt 0:00:38]} a6 {[%emt 0:00:12]} 4. Ba4 {[%emt 0:00:05]} d6 {[%emt 0:00:06]} 5. d4 {[%emt 0:05:11]} b5 {[%emt 0:00:07]} 6. Bb3 {[%emt 0:00:07]} Nxd4 {[%emt 0:00:05]} 7. Nxd4 {[%emt 0:00:22]} exd4 {[%emt 0:00:11]} 8. O-O {[%emt 0:04:57]} Nf6 {[%emt 0:02:24]} 9. f4 {[%emt 0:01:57]} c5 {[%emt 0:03:23]} 10. e5 {[%emt 0:00:19]} dxe5 {[%emt 0:08:44]} 11. fxe5 {[%emt 0:00:11]} Nd5 {[%emt 0:00:04]} 12. Qf3 {[%emt 0:03:47]} Be6 {[%emt 0:00:42]} 13. c4 {[%emt 0:01:00]} dxc3 {[%emt 0:04:46]} 14. Nxc3 {[%emt 0:02:27]} c4 {[%emt 0:00:07]} 15. Bc2 {[%emt 0:00:07]} Nxc3 {[%emt 0:00:24]} 16. bxc3 {[%emt 0:02:02]} Bc5+ {[%emt 0:00:45]} 17. Kh1 {[%emt 0:00:01]} O-O {[%emt 0:00:38]} 18. a4 {[%emt 0:07:31]} bxa4 {[%emt 0:12:58]} 19. Qe4 {[%emt 0:02:05]} g6 {[%emt 0:01:07]} 20. Rxa4 {[%emt 0:05:49]} Ra7 {[%emt 0:02:41]} 21. Bh6 {[%emt 0:05:12]} Re8 {[%emt 0:00:54]} 22. Qf4 {[%emt 0:03:32]} Be7 {[%emt 0:13:19]} 23. h3 {[%emt 0:17:05]} Qb6 {[%emt 0:01:40]} 24. Qf3 {[%emt 0:07:36]} Qc7 {[%emt 0:01:36]} 25. Qf4 {[%emt 0:02:52]} Rb8 {[%emt 0:02:39]} 26. Rfa1 {[%emt 0:04:22]} a5 {[%emt 0:00:46]} 27. Bd1 {[%emt 0:00:17]} Rb2 {[%emt 0:07:36]} 28. Bg4 {[%emt 0:01:46]} Qc6 {[%emt 0:03:42]} 29. Bf3 {[%emt 0:01:05]} Qc7 {[%emt 0:06:09]} 30. Bg4 {[%emt 0:00:15]} Qb7 {[%emt 0:07:22]} 31. Bf3 {[%emt 0:00:09]} Qb5 {[%emt 0:00:03]} 32. Qe4 {[%emt 0:03:00]} Bd8 {[%emt 0:00:03]} 33. Rd1 {[%emt 0:02:25]} Rd7 {[%emt 0:02:03]} 34. Raa1 {[%emt 0:00:42]} Rd3 {[%emt 0:01:18]} 35. Qa8 {[%emt 0:00:32]} Qb8 {[%emt 0:01:32]} 36. Qc6 {[%emt 0:00:15]} Qb5 {[%emt 0:00:17]} 37. Qa8 {[%emt 0:00:26]} Qb8 {[%emt 0:05:55]} 38. Qc6 {[%emt 0:00:12]} Bc7 {[%emt 0:00:44]} 39. Be4 {[%emt 0:01:57]} Rxd1+ {[%emt 0:00:42]} 40. Rxd1 {[%emt 0:00:04]} Rb6 {[%emt 0:00:35]} 41. Qc5 {[%emt 0:30:18]} Bf5 {[%emt 0:12:11]} 42. Qd4 {[%emt 0:00:00]} Re6 {[%emt 0:01:54]} 43. Bd5 {[%emt 0:00:00]} Bxe5 {[%emt 0:01:47]} 44. Qxc4 {[%emt 0:00:00]} Re7 {[%emt 0:04:11]} 45. Re1 {[%emt 0:00:00]} Be6 {[%emt 0:04:07]} 46. Bxe6 {[%emt 0:01:52]} Rxe6 {[%emt 0:00:05]} 47. Qa2 {[%emt 0:02:29]} Qd8 {[%emt 0:00:58]} 48. Qa4 {[%emt 0:03:24]} Bxc3 {[%emt 0:02:36]} 49. Rxe6 {[%emt 0:00:10]} fxe6 {[%emt 0:00:04]} 50. Qb3 {[%emt 0:00:05]} Qc8 {[%emt 0:00:16]} 51. Qc2 {[%emt 0:02:34]} Qc4 {[%emt 0:00:03]} 52. Qc1 {[%emt 0:00:13]} Qd4 {[%emt 0:01:02]} 53. Qf1 {[%emt 0:00:36]} Qd8 {[%emt 0:00:33]} 54. Qb5 {[%emt 0:01:16]} Bg7 {[%emt 0:00:48]} 55. Bxg7 {[%emt 0:00:29]} Kxg7 {[%emt 0:00:07]} 56. Qe5+ {[%emt 0:00:06]} Kf7 {[%emt 0:00:15]} 57. Qf4+ {[%emt 0:00:38]} Ke8 {[%emt 0:00:35]} 58. Qa4+ {[%emt 0:00:06]} Kf8 {[%emt 0:00:42]} 59. Qa3+ {[%emt 0:00:20]} Kg8 {[%emt 0:00:11]} 60. Qa4 {[%emt 0:00:10]} Kg7 {[%emt 0:01:18]} 61. Qa1+ {[%emt 0:00:09]} Kf7 {[%emt 0:00:34]} 62. Qe5 {[%emt 0:00:33]} Qb6 {[%emt 0:01:50]} 63. Qh8 {[%emt 0:01:41]} Qb1+ {[%emt 0:00:34]} 64. Kh2 {[%emt 0:00:01]} g5 {[%emt 0:00:04]} 65. Qd8 {[%emt 0:00:31]} Qf5 {[%emt 0:00:47]} 66. Qd7+ {[%emt 0:00:29]} Kg6 {[%emt 0:00:16]} 67. Qe8+ {[%emt 0:00:33]} Qf7 {[%emt 0:00:19]} 68. Qc6 {[%emt 0:00:03]} h5 {[%emt 0:01:11]} 69. Qc2+ {[%emt 0:01:50]} Qf5 {[%emt 0:00:40]} 70. Qc6 {[%emt 0:00:05]} h4 {[%emt 0:00:22]} 71. Qe8+ {[%emt 0:00:13]} Qf7 {[%emt 0:00:04]} 72. Qc6 {[%emt 0:00:31]} a4 {[%emt 0:00:23]} 73. Qc2+ {[%emt 0:02:15]} Qf5 {[%emt 0:00:04]} 74. Qc8 {[%emt 0:00:05]} Qf7 {[%emt 0:01:13]} 75. Qc2+ {[%emt 0:00:42]} Kh6 {[%emt 0:00:04]} 76. Qc3 {[%emt 0:00:08]} e5 {[%emt 0:00:49]} 77. Kh1 {[%emt 0:00:40]} Kh7 {[%emt 0:00:25]} 78. Kg1 {[%emt 0:01:22]} Qa7+ {[%emt 0:03:29]} 79. Kh1 {[%emt 0:00:44]} Qf2 {[%emt 0:00:28]} 80. Qc7+ {[%emt 0:01:24]} Kg6 {[%emt 0:00:07]} 81. Qc6+ {[%emt 0:00:31]} Qf6 {[%emt 0:00:11]} 82. Qa8 {[%emt 0:02:04]} Qf1+ {[%emt 0:02:27]} 83. Kh2 {[%emt 0:00:02]} Qf4+ {[%emt 0:00:05]} 84. Kh1 {[%emt 0:00:17]} Qc1+ {[%emt 0:00:06]} 85. Kh2 {[%emt 0:00:05]} a3 {[%emt 0:01:24]} 86. Qg8+ {[%emt 0:02:47]} Kf6 {[%emt 0:00:06]} 87. Qh8+ {[%emt 0:00:19]} Ke6 {[%emt 0:00:07]} 88. Qg8+ {[%emt 0:00:06]} Kd7 {[%emt 0:01:00]} 89. Qd5+ {[%emt 0:01:26]} Kc8 {[%emt 0:00:14]} 90. Qe6+ {[%emt 0:00:15]} Kb7 {[%emt 0:00:15]} 91. Qe7+ {[%emt 0:00:15]} Kb6 {[%emt 0:00:45]} 92. Qe6+ {[%emt 0:00:08]} Kb5 {[%emt 0:00:21]} 93. Qxe5+ {[%emt 0:00:04]} Qc5 {[%emt 0:00:04]} 94. Qe2+ {[%emt 0:00:19]} Qc4 {[%emt 0:00:25]} 95. Qe8+ {[%emt 0:00:46]} Kb4 {[%emt 0:00:17]} 96. Qe1+ {[%emt 0:00:14]} Qc3 {[%emt 0:00:55]} 97. Qb1+ {[%emt 0:00:07]} Kc5 {[%emt 0:01:54]} 98. Qf5+ {[%emt 0:00:25]} Kd6 {[%emt 0:00:44]} 99. Qf8+ {[%emt 0:00:44]} Kd5 {[%emt 0:00:12]} 100. Qf7+ {[%emt 0:00:04]} Ke4 {[%emt 0:00:14]} 101. Qg6+ {[%emt 0:00:23]} Kf4 {[%emt 0:00:10]} 102. Qf7+ {[%emt 0:00:36]} Ke3 {[%emt 0:01:13]} 103. Qe7+ {[%emt 0:00:29]} Kf2 {[%emt 0:00:09]} 104. Qf8+ {[%emt 0:00:35]} Ke2 {[%emt 0:00:23]} 105. Qe7+ {[%emt 0:01:26]} Qe3 {[%emt 0:00:11]} 106. Qf8 {[%emt 0:03:22]} Qc3 {[%emt 0:02:44]} 107. Qf3+ Kd2 108. Qf2+ {[%emt 0:01:00]} Kc1 {[%emt 0:01:00]} 109. Qf1+ {[%emt 0:00:30]} Kb2 {[%emt 0:00:30]} 110. Qe2+ {[%emt 0:00:30]} Qc2 {[%emt 0:00:30]} 111. Qb5+ {[%emt 0:00:30] Qc3 [%clk 0:00:00] Qf1 [%clk 0:00:00]} Kc1 112. Qe2 {[%emt 0:00:30]} Kb2 113. Qe5+ {[%emt 0:00:30] Qc2 Qb5+ [%clk 0:00:00] Ka1 [%clk 0:00:00] Qe5+ [%clk 0:00:00]} Kb3 {[%emt 0:01:30]} 114. Qe3+ {[%emt 0:00:30]} Qc3 {[%emt 0:00:30]} 115. Qe4 {[%emt 0:00:30]} 0-1